[Event "January 9 Early 2024"]
[Site "https://www.chess.com"]
[Date "2024.01.11"]
[Round "10"]
[White "Finek, Vaclav"]
[Black "Tuncer, Tuna"]
[Result "0-1"]
[Board "20"]
[TimeControl "180+1"]
[WhiteFideId "23718293"]
[BlackFideId "6349269"]
[WhiteElo "2804"]
[BlackElo "2651"]
[WhiteTeam "CZE"]
[BlackTeam "TUR"]
[WhiteClock "0:01:16"]
[BlackClock "0:01:47"]

1. d4 {[%clk 0:03:00]}  g6 {[%clk 0:03:00]} 2. Nf3 {[%clk 0:03:00]}  Bg7 {[%clk 0:03:01]} 3. g3 {[%clk 0:03:01]}  d6 {[%clk 0:03:01]} 4. Bg2 {[%clk 0:03:02]}  Nf6 {[%clk 0:03:02]} 5. O-O {[%clk 0:03:02]}  O-O {[%clk 0:03:02]} 6. c4 {[%clk 0:03:03]}  Nc6 {[%clk 0:03:01]} 7. Nc3 {[%clk 0:03:01]}  Bf5 {[%clk 0:02:59]} 8. Be3 {[%clk 0:02:57]}  Ne4 {[%clk 0:02:57]} 9. Nxe4 {[%clk 0:02:50]}  Bxe4 {[%clk 0:02:58]} 10. d5 {[%clk 0:02:50]}  Na5 {[%clk 0:02:55]} 11. Bd4 {[%clk 0:02:39]}  c5 {[%clk 0:02:54]} 12. Bxg7 {[%clk 0:02:38]}  Kxg7 {[%clk 0:02:55]} 13. b3 {[%clk 0:02:38]}  Rb8 {[%clk 0:02:48]} 14. Bh3 {[%clk 0:02:35]}  Bxf3 {[%clk 0:02:46]} 15. exf3 {[%clk 0:02:34]}  b5 {[%clk 0:02:46]} 16. Qc2 {[%clk 0:02:28]}  bxc4 {[%clk 0:02:44]} 17. bxc4 {[%clk 0:02:24]}  Rb4 {[%clk 0:02:44]} 18. Rfe1 {[%clk 0:02:24]}  Rxc4 {[%clk 0:02:34]} 19. Qe2 {[%clk 0:02:23]}  Re8 {[%clk 0:02:32]} 20. f4 {[%clk 0:02:18]}  Rd4 {[%clk 0:02:28]} 21. Bg2 {[%clk 0:02:01]}  Qd7 {[%clk 0:02:22]} 22. Rab1 {[%clk 0:02:00]}  Nc4 {[%clk 0:02:18]} 23. Rec1 {[%clk 0:01:59]}  Nb6 {[%clk 0:02:17]} 24. Rd1 {[%clk 0:01:53]}  Rxd1+ {[%clk 0:02:14]} 25. Qxd1 {[%clk 0:01:54]}  Qf5 {[%clk 0:02:04]} 26. h4 {[%clk 0:01:49]}  h5 {[%clk 0:02:03]} 27. Rb3 {[%clk 0:01:43]}  c4 {[%clk 0:02:00]} 28. Ra3 {[%clk 0:01:42]}  Rc8 {[%clk 0:01:56]} 29. Rxa7 {[%clk 0:01:37]}  c3 {[%clk 0:01:56]} 30. Qd4+ {[%clk 0:01:16]}  Qf6 {[%clk 0:01:54]} 31. Qxb6 {[%clk 0:01:16]}  c2 {[%clk 0:01:54]} 32. Rc7 {[%clk 0:01:16]}  Rxc7 {[%clk 0:01:46]} 33. Qxc7 {[%clk 0:01:16]}  Qa1+ {[%clk 0:01:46]} 34. Kh2 {[%clk 0:01:16]}  c1=Q {[%clk 0:01:47]} 0-1

[Event "January 9 Early 2024"]
[Site "https://www.chess.com"]
[Date "2024.01.11"]
[Round "10"]
[White "Cristobal, Manuel"]
[Black "Przybylski, Wojciech"]
[Result "1-0"]
[Board "22"]
[TimeControl "180+1"]
[WhiteFideId "112879"]
[BlackFideId "1117599"]
[WhiteElo "2713"]
[BlackElo "2558"]
[WhiteTeam "ARG"]
[BlackTeam "POL"]
[WhiteClock "0:01:55"]
[BlackClock "0:00:35"]

1. d4 {[%clk 0:03:00]}  Nf6 {[%clk 0:02:59]} 2. Nf3 {[%clk 0:03:00]}  e6 {[%clk 0:02:59]} 3. e3 {[%clk 0:03:01]}  b6 {[%clk 0:02:57]} 4. Bd3 {[%clk 0:03:00]}  Bb7 {[%clk 0:02:57]} 5. O-O {[%clk 0:03:00]}  Be7 {[%clk 0:02:57]} 6. b3 {[%clk 0:03:00]}  O-O {[%clk 0:02:57]} 7. Bb2 {[%clk 0:03:00]}  a5 {[%clk 0:02:57]} 8. c4 {[%clk 0:02:56]}  a4 {[%clk 0:02:55]} 9. bxa4 {[%clk 0:02:56]}  d5 {[%clk 0:02:55]} 10. Nbd2 {[%clk 0:02:54]}  Qd7 {[%clk 0:02:53]} 11. Bc2 {[%clk 0:02:46]}  Ba6 {[%clk 0:02:47]} 12. Ne5 {[%clk 0:02:44]}  Qc8 {[%clk 0:02:45]} 13. Qf3 {[%clk 0:02:41]}  c5 {[%clk 0:02:32]} 14. Qh3 {[%clk 0:02:37]}  g6 {[%clk 0:02:25]} 15. dxc5 {[%clk 0:02:31]}  bxc5 {[%clk 0:02:23]} 16. Rfd1 {[%clk 0:02:28]}  Nc6 {[%clk 0:02:13]} 17. Ndf3 {[%clk 0:02:27]}  dxc4 {[%clk 0:02:01]} 18. Ng5 {[%clk 0:02:21]}  Rb8 {[%clk 0:01:48]} 19. Nxc6 {[%clk 0:02:16]}  Rxb2 {[%clk 0:01:01]} 20. Nxe7+ {[%clk 0:02:15]}  Kg7 {[%clk 0:01:02]} 21. Nxc8 {[%clk 0:02:15]}  Rxc8 {[%clk 0:01:01]} 22. Rd7 {[%clk 0:01:53]}  Nxd7 {[%clk 0:00:46]} 23. Qxh7+ {[%clk 0:01:53]}  Kf6 {[%clk 0:00:46]} 24. Qxf7+ {[%clk 0:01:53]}  Kxg5 {[%clk 0:00:38]} 25. Qf4+ {[%clk 0:01:53]}  Kh5 {[%clk 0:00:38]} 26. Bd1+ {[%clk 0:01:54]}  Re2 {[%clk 0:00:35]} 27. Bxe2# {[%clk 0:01:55]} 1-0

[Event "January 9 Early 2024"]
[Site "https://www.chess.com"]
[Date "2024.01.11"]
[Round "10"]
[White "Skurikhin, Dmitrij"]
[Black "Herman, Matthew"]
[Result "0-1"]
[Board "23"]
[TimeControl "180+1"]
[WhiteFideId "4161297"]
[BlackFideId "2028964"]
[WhiteElo "2220"]
[BlackElo "2516"]
[WhiteTeam "RUS"]
[BlackTeam "USA"]
[WhiteClock "0:01:03"]
[BlackClock "0:01:22"]

1. d4 {[%clk 0:03:00]}  Nf6 {[%clk 0:02:59]} 2. Nf3 {[%clk 0:03:00]}  g6 {[%clk 0:03:00]} 3. c4 {[%clk 0:03:00]}  Bg7 {[%clk 0:03:01]} 4. Nc3 {[%clk 0:03:01]}  O-O {[%clk 0:03:01]} 5. e4 {[%clk 0:03:01]}  d6 {[%clk 0:03:02]} 6. Be2 {[%clk 0:03:01]}  Nbd7 {[%clk 0:03:02]} 7. O-O {[%clk 0:03:01]}  e5 {[%clk 0:03:03]} 8. Be3 {[%clk 0:03:00]}  Ng4 {[%clk 0:03:03]} 9. Bg5 {[%clk 0:03:00]}  f6 {[%clk 0:03:03]} 10. Bc1 {[%clk 0:02:59]}  Nh6 {[%clk 0:03:03]} 11. Be3 {[%clk 0:02:55]}  Nf7 {[%clk 0:03:04]} 12. b4 {[%clk 0:02:52]}  f5 {[%clk 0:03:02]} 13. dxe5 {[%clk 0:02:41]}  dxe5 {[%clk 0:03:02]} 14. c5 {[%clk 0:02:31]}  c6 {[%clk 0:02:54]} 15. Bc4 {[%clk 0:02:22]}  f4 {[%clk 0:02:54]} 16. Bc1 {[%clk 0:02:21]}  Kh8 {[%clk 0:02:45]} 17. Bb2 {[%clk 0:02:20]}  g5 {[%clk 0:02:37]} 18. h3 {[%clk 0:02:12]}  Qe7 {[%clk 0:02:27]} 19. Bxf7 {[%clk 0:01:56]}  Qxf7 {[%clk 0:02:12]} 20. Nxg5 {[%clk 0:01:55]}  Qg6 {[%clk 0:02:12]} 21. Qg4 {[%clk 0:01:33]}  Nxc5 {[%clk 0:01:51]} 22. Qh4 {[%clk 0:01:31]}  Nd3 {[%clk 0:01:30]} 23. Na4 {[%clk 0:01:08]}  Nxb2 {[%clk 0:01:21]} 24. Nxb2 {[%clk 0:01:07]}  Bf6 {[%clk 0:01:21]} 25. Qxh7+ {[%clk 0:01:03]}  Qxh7 {[%clk 0:01:21]} 26. Nxh7 {[%clk 0:01:03]}  Kxh7 {[%clk 0:01:22]} 0-1

[Event "January 9 Early 2024"]
[Site "https://www.chess.com"]
[Date "2024.01.11"]
[Round "10"]
[White "Skaric, Djuro"]
[Black "Matveeva, Olga"]
[Result "0-1"]
[Board "24"]
[TimeControl "180+1"]
[WhiteFideId "934569"]
[BlackFideId "24107018"]
[WhiteElo "2289"]
[BlackElo "2397"]
[WhiteTeam "SRB"]
[BlackTeam "RUS"]
[WhiteClock "0:01:45"]
[BlackClock "0:01:06"]

1. g3 {[%clk 0:03:00]}  d5 {[%clk 0:02:59]} 2. Bg2 {[%clk 0:03:01]}  Nf6 {[%clk 0:02:59]} 3. d3 {[%clk 0:03:02]}  e6 {[%clk 0:02:52]} 4. Nf3 {[%clk 0:03:02]}  Be7 {[%clk 0:02:50]} 5. O-O {[%clk 0:03:03]}  O-O {[%clk 0:02:50]} 6. Nc3 {[%clk 0:03:03]}  c5 {[%clk 0:02:49]} 7. e4 {[%clk 0:03:04]}  Nc6 {[%clk 0:02:43]} 8. h3 {[%clk 0:03:04]}  b6 {[%clk 0:02:35]} 9. g4 {[%clk 0:03:04]}  dxe4 {[%clk 0:02:30]} 10. dxe4 {[%clk 0:03:02]}  Bb7 {[%clk 0:02:30]} 11. Bf4 {[%clk 0:02:57]}  Nd4 {[%clk 0:02:27]} 12. Ne5 {[%clk 0:02:50]}  Bd6 {[%clk 0:02:16]} 13. g5 {[%clk 0:02:44]}  Ne8 {[%clk 0:02:05]} 14. Qh5 {[%clk 0:02:35]}  Qc7 {[%clk 0:02:02]} 15. g6 {[%clk 0:02:29]}  fxg6 {[%clk 0:02:01]} 16. Nxg6 {[%clk 0:02:29]}  hxg6 {[%clk 0:01:55]} 17. Bxd6 {[%clk 0:02:28]}  gxh5 {[%clk 0:01:53]} 18. Bxc7 {[%clk 0:02:26]}  Nxc7 {[%clk 0:01:54]} 19. f4 {[%clk 0:02:18]}  Nxc2 {[%clk 0:01:49]} 20. Rac1 {[%clk 0:02:16]}  Ne3 {[%clk 0:01:48]} 21. Rf2 {[%clk 0:02:16]}  Nxg2 {[%clk 0:01:47]} 22. Rxg2 {[%clk 0:02:17]}  Rad8 {[%clk 0:01:45]} 23. Rf1 {[%clk 0:02:15]}  Rd4 {[%clk 0:01:41]} 24. Re2 {[%clk 0:02:14]}  Rfd8 {[%clk 0:01:40]} 25. Rff2 {[%clk 0:02:14]}  Ba6 {[%clk 0:01:35]} 26. Re3 {[%clk 0:02:06]}  Rd2 {[%clk 0:01:32]} 27. a4 {[%clk 0:02:01]}  Rxf2 {[%clk 0:01:30]} 28. Kxf2 {[%clk 0:02:01]}  Rd2+ {[%clk 0:01:30]} 29. Kg3 {[%clk 0:02:02]}  Rxb2 {[%clk 0:01:29]} 30. Kh4 {[%clk 0:02:02]}  g6 {[%clk 0:01:28]} 31. Kg5 {[%clk 0:02:02]}  Kf7 {[%clk 0:01:27]} 32. f5 {[%clk 0:02:02]}  exf5 {[%clk 0:01:26]} 33. exf5 {[%clk 0:02:03]}  Rg2+ {[%clk 0:01:25]} 34. Kh4 {[%clk 0:01:58]}  gxf5 {[%clk 0:01:21]} 35. Kxh5 {[%clk 0:01:58]}  Bb7 {[%clk 0:01:08]} 36. Ne2 {[%clk 0:01:45]}  Rxe2 {[%clk 0:01:06]} 0-1

[Event "January 9 Early 2024"]
[Site "https://www.chess.com"]
[Date "2024.01.11"]
[Round "10"]
[White "Harriott, Tyrell"]
[Black "Gopal, K.N."]
[Result "1-0"]
[Board "26"]
[TimeControl "180+1"]
[WhiteFideId "2086484"]
[BlackFideId "5001447"]
[WhiteElo "2357"]
[BlackElo "2232"]
[WhiteTeam "USA"]
[BlackTeam "IND"]
[WhiteClock "0:01:17"]
[BlackClock "0:01:06"]

1. d4 {[%clk 0:02:44]}  Nf6 {[%clk 0:02:58]} 2. e3 {[%clk 0:02:24]}  e6 {[%clk 0:02:54]} 3. Bd3 {[%clk 0:02:23]}  c5 {[%clk 0:02:52]} 4. f4 {[%clk 0:02:21]}  cxd4 {[%clk 0:02:51]} 5. exd4 {[%clk 0:02:21]}  b6 {[%clk 0:02:46]} 6. Nf3 {[%clk 0:02:21]}  Bb7 {[%clk 0:02:45]} 7. O-O {[%clk 0:02:21]}  Be4 {[%clk 0:02:45]} 8. Qe2 {[%clk 0:02:13]}  Bxd3 {[%clk 0:02:44]} 9. Qxd3 {[%clk 0:02:13]}  Be7 {[%clk 0:02:44]} 10. c3 {[%clk 0:02:12]}  O-O {[%clk 0:02:43]} 11. Nbd2 {[%clk 0:02:12]}  Nc6 {[%clk 0:02:41]} 12. Ne5 {[%clk 0:02:11]}  Rc8 {[%clk 0:02:39]} 13. Ne4 {[%clk 0:02:10]}  d6 {[%clk 0:02:31]} 14. Nxc6 {[%clk 0:02:05]}  Rxc6 {[%clk 0:02:29]} 15. Ng5 {[%clk 0:02:05]}  h6 {[%clk 0:02:17]} 16. Nh3 {[%clk 0:02:03]}  Qc8 {[%clk 0:02:01]} 17. Qf3 {[%clk 0:01:59]}  Re8 {[%clk 0:01:52]} 18. Be3 {[%clk 0:01:54]}  Nd5 {[%clk 0:01:43]} 19. Bf2 {[%clk 0:01:51]}  f5 {[%clk 0:01:42]} 20. Rae1 {[%clk 0:01:49]}  Nf6 {[%clk 0:01:41]} 21. Rxe6 {[%clk 0:01:34]}  Qxe6 {[%clk 0:01:35]} 22. Qxc6 {[%clk 0:01:33]}  Ne4 {[%clk 0:01:34]} 23. Qxe8+ {[%clk 0:01:32]}  Kh7 {[%clk 0:01:34]} 24. Re1 {[%clk 0:01:25]}  d5 {[%clk 0:01:23]} 25. Bh4 {[%clk 0:01:19]}  Bxh4 {[%clk 0:01:06]} 26. Qxe6 {[%clk 0:01:17]} 1-0

[Event "January 9 Early 2024"]
[Site "https://www.chess.com"]
[Date "2024.01.11"]
[Round "10"]
[White "Tejedor Fuente, Enrique"]
[Black "Costachi, Mihnea"]
[Result "0-1"]
[Board "27"]
[TimeControl "180+1"]
[WhiteFideId "2299100"]
[BlackFideId "1217518"]
[WhiteElo "2723"]
[BlackElo "2873"]
[WhiteTeam "ESP"]
[BlackTeam "ROU"]
[WhiteClock "0:01:48"]
[BlackClock "0:01:16"]

1. Nc3 {[%clk 0:03:00]}  c5 {[%clk 0:02:57]} 2. Nf3 {[%clk 0:02:59]}  Nc6 {[%clk 0:02:55]} 3. a3 {[%clk 0:02:59]}  Nf6 {[%clk 0:02:52]} 4. e4 {[%clk 0:02:59]}  e6 {[%clk 0:02:48]} 5. g3 {[%clk 0:02:58]}  d5 {[%clk 0:02:48]} 6. exd5 {[%clk 0:02:57]}  exd5 {[%clk 0:02:48]} 7. Bg2 {[%clk 0:02:55]}  d4 {[%clk 0:02:49]} 8. Ne2 {[%clk 0:02:56]}  Bd6 {[%clk 0:02:48]} 9. d3 {[%clk 0:02:56]}  O-O {[%clk 0:02:49]} 10. O-O {[%clk 0:02:56]}  Re8 {[%clk 0:02:47]} 11. Bf4 {[%clk 0:02:57]}  Bg4 {[%clk 0:02:45]} 12. Bxd6 {[%clk 0:02:56]}  Qxd6 {[%clk 0:02:44]} 13. h3 {[%clk 0:02:55]}  Bd7 {[%clk 0:02:31]} 14. Nd2 {[%clk 0:02:54]}  Ne5 {[%clk 0:02:27]} 15. Nf4 {[%clk 0:02:52]}  Bc6 {[%clk 0:02:26]} 16. Re1 {[%clk 0:02:51]}  Bxg2 {[%clk 0:02:25]} 17. Kxg2 {[%clk 0:02:52]}  Qc6+ {[%clk 0:02:22]} 18. Nf3 {[%clk 0:02:52]}  Re7 {[%clk 0:02:07]} 19. b4 {[%clk 0:02:52]}  b6 {[%clk 0:02:01]} 20. bxc5 {[%clk 0:02:50]}  bxc5 {[%clk 0:02:02]} 21. g4 {[%clk 0:02:24]}  Rae8 {[%clk 0:02:02]} 22. Kg3 {[%clk 0:02:24]}  Qd6 {[%clk 0:01:45]} 23. Nxe5 {[%clk 0:02:21]}  Rxe5 {[%clk 0:01:45]} 24. Rxe5 {[%clk 0:02:22]}  Qxe5 {[%clk 0:01:39]} 25. Kf3 {[%clk 0:02:16]}  g5 {[%clk 0:01:34]} 26. Nh5 {[%clk 0:02:10]}  Nxh5 {[%clk 0:01:23]} 27. gxh5 {[%clk 0:02:11]}  Qh2 {[%clk 0:01:23]} 28. Qf1 {[%clk 0:02:02]}  Re6 {[%clk 0:01:22]} 29. Re1 {[%clk 0:01:55]}  Rxe1 {[%clk 0:01:18]} 30. Qxe1 {[%clk 0:01:55]}  Qxh3+ {[%clk 0:01:19]} 31. Ke2 {[%clk 0:01:53]}  Qe6+ {[%clk 0:01:19]} 32. Kf1 {[%clk 0:01:52]}  Qxe1+ {[%clk 0:01:19]} 33. Kxe1 {[%clk 0:01:53]}  Kg7 {[%clk 0:01:18]} 34. Ke2 {[%clk 0:01:52]}  Kh6 {[%clk 0:01:18]} 35. Kf3 {[%clk 0:01:52]}  Kxh5 {[%clk 0:01:19]} 36. Ke4 {[%clk 0:01:52]}  Kg4 {[%clk 0:01:20]} 37. Kd5 {[%clk 0:01:53]}  h5 {[%clk 0:01:19]} 38. Kxc5 {[%clk 0:01:51]}  h4 {[%clk 0:01:20]} 39. Kxd4 {[%clk 0:01:50]}  h3 {[%clk 0:01:20]} 40. f3+ {[%clk 0:01:48]}  Kxf3 {[%clk 0:01:20]} 41. c4 {[%clk 0:01:48]}  h2 {[%clk 0:01:20]} 42. c5 {[%clk 0:01:49]}  h1=Q {[%clk 0:01:20]} 43. c6 {[%clk 0:01:50]}  Qh2 {[%clk 0:01:20]} 44. Kc5 {[%clk 0:01:50]}  Qe5+ {[%clk 0:01:18]} 45. Kc4 {[%clk 0:01:50]}  Ke3 {[%clk 0:01:18]} 46. a4 {[%clk 0:01:48]}  a5 {[%clk 0:01:16]} 0-1

[Event "January 9 Early 2024"]
[Site "https://www.chess.com"]
[Date "2024.01.11"]
[Round "10"]
[White "Zgadzaj, Rafal"]
[Black "Sielecki, Christof"]
[Result "0-1"]
[Board "29"]
[TimeControl "180+1"]
[WhiteFideId "1113712"]
[BlackFideId "4620437"]
[WhiteElo "2335"]
[BlackElo "2548"]
[WhiteTeam "POL"]
[BlackTeam "GER"]
[WhiteClock "0:01:09"]
[BlackClock "0:00:38"]

1. b3 {[%clk 0:03:00]}  d5 {[%clk 0:02:57]} 2. Bb2 {[%clk 0:03:00]}  c5 {[%clk 0:02:58]} 3. f4 {[%clk 0:03:00]}  Nf6 {[%clk 0:02:51]} 4. Nf3 {[%clk 0:03:00]}  g6 {[%clk 0:02:51]} 5. e3 {[%clk 0:02:53]}  Bg7 {[%clk 0:02:50]} 6. d3 {[%clk 0:02:53]}  O-O {[%clk 0:02:48]} 7. Ne5 {[%clk 0:02:48]}  Nbd7 {[%clk 0:02:43]} 8. Nd2 {[%clk 0:02:48]}  d4 {[%clk 0:02:35]} 9. exd4 {[%clk 0:02:45]}  Nd5 {[%clk 0:02:35]} 10. Qf3 {[%clk 0:02:38]}  Nb4 {[%clk 0:02:34]} 11. O-O-O {[%clk 0:02:26]}  cxd4 {[%clk 0:02:22]} 12. Bxd4 {[%clk 0:02:23]}  Nxe5 {[%clk 0:02:19]} 13. Bxe5 {[%clk 0:02:18]}  Bxe5 {[%clk 0:02:18]} 14. fxe5 {[%clk 0:02:17]}  Qc7 {[%clk 0:01:40]} 15. Nc4 {[%clk 0:02:00]}  Be6 {[%clk 0:01:32]} 16. a3 {[%clk 0:01:58]}  Nd5 {[%clk 0:01:27]} 17. d4 {[%clk 0:01:47]}  b5 {[%clk 0:01:24]} 18. Ne3 {[%clk 0:01:46]}  Rfd8 {[%clk 0:00:45]} 19. Kb2 {[%clk 0:01:21]}  Qc3+ {[%clk 0:00:44]} 20. Kc1 {[%clk 0:01:09]}  Nxe3 {[%clk 0:00:39]} 21. Rd3 {[%clk 0:01:09]}  Qxc2# {[%clk 0:00:38]} 0-1

[Event "January 9 Early 2024"]
[Site "https://www.chess.com"]
[Date "2024.01.11"]
[Round "10"]
[White "Vlassov, Nikolai"]
[Black "Rakhmatullaev, Almas"]
[Result "0-1"]
[Board "30"]
[TimeControl "180+1"]
[WhiteFideId "4103360"]
[BlackFideId "14205793"]
[WhiteElo "2662"]
[BlackElo "2838"]
[WhiteTeam "FID"]
[BlackTeam "UZB"]
[WhiteClock "0:01:27"]
[BlackClock "0:00:47"]

1. e4 {[%clk 0:03:00]}  e5 {[%clk 0:02:56]} 2. Bc4 {[%clk 0:03:00]}  Nf6 {[%clk 0:02:55]} 3. d3 {[%clk 0:03:00]}  c6 {[%clk 0:02:49]} 4. Nf3 {[%clk 0:03:01]}  d5 {[%clk 0:02:50]} 5. Bb3 {[%clk 0:03:01]}  Bd6 {[%clk 0:02:50]} 6. Nc3 {[%clk 0:03:01]}  Be6 {[%clk 0:02:44]} 7. Bg5 {[%clk 0:02:53]}  d4 {[%clk 0:02:35]} 8. Ne2 {[%clk 0:02:53]}  Bxb3 {[%clk 0:02:33]} 9. axb3 {[%clk 0:02:52]}  Nbd7 {[%clk 0:02:32]} 10. Ng3 {[%clk 0:02:52]}  h6 {[%clk 0:02:31]} 11. Nf5 {[%clk 0:02:50]}  Bf8 {[%clk 0:02:19]} 12. Bxf6 {[%clk 0:02:43]}  Qxf6 {[%clk 0:02:17]} 13. c3 {[%clk 0:02:39]}  g6 {[%clk 0:02:16]} 14. Ng3 {[%clk 0:02:37]}  h5 {[%clk 0:01:49]} 15. cxd4 {[%clk 0:02:26]}  h4 {[%clk 0:01:49]} 16. dxe5 {[%clk 0:02:15]}  Nxe5 {[%clk 0:01:47]} 17. Nf1 {[%clk 0:02:10]}  Bb4+ {[%clk 0:01:36]} 18. Ke2 {[%clk 0:02:09]}  h3 {[%clk 0:01:25]} 19. Nxe5 {[%clk 0:01:44]}  hxg2 {[%clk 0:01:25]} 20. Ng4 {[%clk 0:01:43]}  Qxb2+ {[%clk 0:01:13]} 21. Nd2 {[%clk 0:01:35]}  gxh1=Q {[%clk 0:01:11]} 22. Qxh1 {[%clk 0:01:34]}  Qxd2+ {[%clk 0:00:58]} 23. Kf3 {[%clk 0:01:34]}  Qxd3+ {[%clk 0:00:58]} 24. Ne3 {[%clk 0:01:34]}  Qd7 {[%clk 0:00:53]} 25. h4 {[%clk 0:01:33]}  Be7 {[%clk 0:00:52]} 26. Rd1 {[%clk 0:01:32]}  Qe6 {[%clk 0:00:50]} 27. Ke2 {[%clk 0:01:27]}  Rxh4 {[%clk 0:00:50]} 28. Qf3 {[%clk 0:01:27]}  Qxe4 {[%clk 0:00:47]} 0-1

[Event "January 9 Early 2024"]
[Site "https://www.chess.com"]
[Date "2024.01.11"]
[Round "10"]
[White "Delgado Kuffo, Andres"]
[Black "Dahlgren, James Allen"]
[Result "1-0"]
[Board "31"]
[TimeControl "180+1"]
[WhiteFideId "3600475"]
[BlackFideId "22256873"]
[WhiteElo "2287"]
[BlackElo "2095"]
[WhiteTeam "ECU"]
[BlackTeam "ESP"]
[WhiteClock "0:00:56"]
[BlackClock "0:00:50"]

1. e4 {[%clk 0:03:00]}  e6 {[%clk 0:02:59]} 2. d4 {[%clk 0:02:54]}  c5 {[%clk 0:03:00]} 3. c3 {[%clk 0:02:51]}  d5 {[%clk 0:03:01]} 4. e5 {[%clk 0:02:51]}  Qb6 {[%clk 0:03:00]} 5. Nf3 {[%clk 0:02:47]}  Bd7 {[%clk 0:02:59]} 6. Bd3 {[%clk 0:02:46]}  Bb5 {[%clk 0:02:58]} 7. dxc5 {[%clk 0:02:42]}  Bxc5 {[%clk 0:02:57]} 8. b4 {[%clk 0:02:41]}  Bxf2+ {[%clk 0:02:36]} 9. Ke2 {[%clk 0:02:40]}  Bxd3+ {[%clk 0:02:16]} 10. Qxd3 {[%clk 0:02:37]}  a5 {[%clk 0:01:59]} 11. Rf1 {[%clk 0:02:24]}  Bg3 {[%clk 0:01:28]} 12. Be3 {[%clk 0:02:13]}  Qc7 {[%clk 0:01:26]} 13. hxg3 {[%clk 0:02:08]}  Nc6 {[%clk 0:01:23]} 14. b5 {[%clk 0:01:34]}  Nxe5 {[%clk 0:01:20]} 15. b6 {[%clk 0:01:34]}  Nxd3 {[%clk 0:01:04]} 16. bxc7 {[%clk 0:01:30]}  Nb2 {[%clk 0:01:04]} 17. Na3 {[%clk 0:01:17]}  Rc8 {[%clk 0:00:54]} 18. Nb5 {[%clk 0:01:15]}  Kd7 {[%clk 0:00:53]} 19. Ne5+ {[%clk 0:01:15]}  Ke7 {[%clk 0:00:50]} 20. Rxf7+ {[%clk 0:00:56]} 1-0

[Event "January 9 Early 2024"]
[Site "https://www.chess.com"]
[Date "2024.01.11"]
[Round "10"]
[White "Estrada Nieto, Julian"]
[Black "Plyasunov, Daniil"]
[Result "1/2-1/2"]
[Board "32"]
[TimeControl "180+1"]
[WhiteFideId "5101018"]
[BlackFideId "44133839"]
[WhiteElo "2610"]
[BlackElo "2743"]
[WhiteTeam "ESP"]
[BlackTeam "RUS"]
[WhiteClock "0:01:03"]
[BlackClock "0:01:19"]

1. e4 {[%clk 0:03:00]}  c6 {[%clk 0:02:59]} 2. d4 {[%clk 0:03:00]}  d5 {[%clk 0:02:59]} 3. exd5 {[%clk 0:02:59]}  cxd5 {[%clk 0:02:59]} 4. Bd3 {[%clk 0:02:59]}  Nc6 {[%clk 0:02:59]} 5. c3 {[%clk 0:02:59]}  Nf6 {[%clk 0:03:00]} 6. Nf3 {[%clk 0:02:59]}  Bg4 {[%clk 0:02:59]} 7. Bf4 {[%clk 0:03:00]}  e6 {[%clk 0:02:59]} 8. Nbd2 {[%clk 0:03:00]}  Bd6 {[%clk 0:02:59]} 9. Bxd6 {[%clk 0:03:00]}  Qxd6 {[%clk 0:03:00]} 10. O-O {[%clk 0:03:01]}  O-O {[%clk 0:03:00]} 11. Qb3 {[%clk 0:03:01]}  Qc7 {[%clk 0:02:59]} 12. Rfe1 {[%clk 0:03:00]}  Bxf3 {[%clk 0:02:53]} 13. Nxf3 {[%clk 0:03:00]}  a6 {[%clk 0:02:50]} 14. a4 {[%clk 0:02:59]}  Rfe8 {[%clk 0:02:50]} 15. g3 {[%clk 0:02:53]}  Re7 {[%clk 0:02:44]} 16. Kg2 {[%clk 0:02:52]}  Rae8 {[%clk 0:02:45]} 17. Qc2 {[%clk 0:02:44]}  e5 {[%clk 0:02:39]} 18. dxe5 {[%clk 0:02:44]}  Nxe5 {[%clk 0:02:40]} 19. Nxe5 {[%clk 0:02:44]}  Rxe5 {[%clk 0:02:41]} 20. Qd2 {[%clk 0:02:40]}  Qe7 {[%clk 0:02:31]} 21. Rxe5 {[%clk 0:02:32]}  Qxe5 {[%clk 0:02:32]} 22. Rd1 {[%clk 0:02:10]}  g6 {[%clk 0:02:29]} 23. h3 {[%clk 0:02:08]}  d4 {[%clk 0:02:26]} 24. Rc1 {[%clk 0:01:41]}  Rd8 {[%clk 0:02:15]} 25. Re1 {[%clk 0:01:40]}  Qd5+ {[%clk 0:02:15]} 26. Kg1 {[%clk 0:01:36]}  dxc3 {[%clk 0:02:11]} 27. Qxc3 {[%clk 0:01:36]}  Qxd3 {[%clk 0:02:10]} 28. Qxf6 {[%clk 0:01:36]}  Rf8 {[%clk 0:01:54]} 29. h4 {[%clk 0:01:32]}  h5 {[%clk 0:01:53]} 30. Re3 {[%clk 0:01:28]}  Qd1+ {[%clk 0:01:51]} 31. Kg2 {[%clk 0:01:28]}  Qxa4 {[%clk 0:01:52]} 32. Re7 {[%clk 0:01:28]}  Qb5 {[%clk 0:01:44]} 33. Qf3 {[%clk 0:01:18]}  Qxb2 {[%clk 0:01:41]} 34. Rxb7 {[%clk 0:01:16]}  Qa2 {[%clk 0:01:37]} 35. Ra7 {[%clk 0:01:14]}  a5 {[%clk 0:01:35]} 36. Kh2 {[%clk 0:01:05]}  a4 {[%clk 0:01:34]} 37. Qf4 {[%clk 0:01:03]}  a3 {[%clk 0:01:19]} 38. Qe3 {[%clk 0:01:03]} 1/2-1/2

[Event "January 9 Early 2024"]
[Site "https://www.chess.com"]
[Date "2024.01.11"]
[Round "10"]
[White "Poormosavi, Seyed Kian"]
[Black "Rustamov, Rustam"]
[Result "0-1"]
[Board "33"]
[TimeControl "180+1"]
[WhiteFideId "12585807"]
[BlackFideId "13440110"]
[WhiteElo "2740"]
[BlackElo "2891"]
[WhiteTeam "IRI"]
[BlackTeam "AZE"]
[WhiteClock "0:01:46"]
[BlackClock "0:00:31"]

1. Nf3 {[%clk 0:03:00]}  Nf6 {[%clk 0:02:46]} 2. g3 {[%clk 0:03:00]}  e6 {[%clk 0:02:44]} 3. Bg2 {[%clk 0:03:01]}  d5 {[%clk 0:02:40]} 4. O-O {[%clk 0:03:01]}  Be7 {[%clk 0:02:38]} 5. b3 {[%clk 0:03:01]}  O-O {[%clk 0:02:35]} 6. Bb2 {[%clk 0:03:01]}  c5 {[%clk 0:02:34]} 7. e3 {[%clk 0:03:00]}  Nc6 {[%clk 0:02:34]} 8. c4 {[%clk 0:03:00]}  d4 {[%clk 0:02:26]} 9. exd4 {[%clk 0:03:01]}  cxd4 {[%clk 0:02:27]} 10. d3 {[%clk 0:03:01]}  e5 {[%clk 0:02:26]} 11. Nbd2 {[%clk 0:03:02]}  Bf5 {[%clk 0:02:24]} 12. Qe2 {[%clk 0:03:00]}  Bd6 {[%clk 0:02:19]} 13. Ng5 {[%clk 0:02:57]}  Re8 {[%clk 0:02:15]} 14. Nge4 {[%clk 0:02:56]}  Nxe4 {[%clk 0:02:14]} 15. Nxe4 {[%clk 0:02:57]}  Bf8 {[%clk 0:02:12]} 16. a3 {[%clk 0:02:57]}  a5 {[%clk 0:02:10]} 17. Bc1 {[%clk 0:02:58]}  Bg6 {[%clk 0:02:09]} 18. Re1 {[%clk 0:02:51]}  f5 {[%clk 0:02:07]} 19. Nd2 {[%clk 0:02:51]}  Bf7 {[%clk 0:01:14]} 20. Qd1 {[%clk 0:02:48]}  Qb6 {[%clk 0:01:13]} 21. Qc2 {[%clk 0:02:47]}  Rad8 {[%clk 0:01:12]} 22. Rb1 {[%clk 0:02:44]}  e4 {[%clk 0:01:11]} 23. dxe4 {[%clk 0:02:42]}  d3 {[%clk 0:01:11]} 24. Qd1 {[%clk 0:02:41]}  Bc5 {[%clk 0:01:09]} 25. Rf1 {[%clk 0:02:38]}  Nd4 {[%clk 0:01:09]} 26. Bb2 {[%clk 0:02:38]}  Ne2+ {[%clk 0:01:08]} 27. Kh1 {[%clk 0:02:38]}  Bh5 {[%clk 0:01:07]} 28. f3 {[%clk 0:02:33]}  fxe4 {[%clk 0:01:07]} 29. g4 {[%clk 0:02:16]}  Bf7 {[%clk 0:00:56]} 30. Nxe4 {[%clk 0:02:13]}  Rxe4 {[%clk 0:00:50]} 31. Qd2 {[%clk 0:02:12]}  Be3 {[%clk 0:00:46]} 32. Qe1 {[%clk 0:02:10]}  Ree8 {[%clk 0:00:37]} 33. b4 {[%clk 0:02:07]}  Qh6 {[%clk 0:00:34]} 34. h4 {[%clk 0:01:45]}  Bf4 {[%clk 0:00:32]} 35. Qf2 {[%clk 0:01:45]}  Ng3+ {[%clk 0:00:32]} 36. Kg1 {[%clk 0:01:46]}  Be3 {[%clk 0:00:31]} 0-1